[Event "Titled Tuesday Blitz November 29 Late 2022"]
[White "Ezat, Mohamed"]
[Black "Yuan, Qingyu"]
[WhiteFideId "10600906"]
[BlackFideId "8609772"]
[WhiteElo "2386"]
[BlackElo "2359"]
[Result "1-0"]
[Round "05"]
[TimeControl "180+1"]
[Date "2022.11.30"]
[WhiteClock "0:00:29"]
[BlackClock "0:00:02"]

1. d4 {[%clk 0:02:54]}  Nf6 {[%clk 0:02:59]} 2. c4 {[%clk 0:02:55]}  e6 {[%clk 0:03:00]} 3. Nc3 {[%clk 0:02:54]}  Bb4 {[%clk 0:02:59]} 4. e3 {[%clk 0:02:55]}  O-O {[%clk 0:02:59]} 5. a3 {[%clk 0:02:55]}  Bxc3+ {[%clk 0:02:56]} 6. bxc3 {[%clk 0:02:56]}  c5 {[%clk 0:02:55]} 7. Bd3 {[%clk 0:02:55]}  Nc6 {[%clk 0:02:50]} 8. Ne2 {[%clk 0:02:55]}  d6 {[%clk 0:02:47]} 9. O-O {[%clk 0:02:54]}  e5 {[%clk 0:02:47]} 10. f3 {[%clk 0:02:54]}  b6 {[%clk 0:02:39]} 11. e4 {[%clk 0:02:53]}  Nd7 {[%clk 0:02:12]} 12. f4 {[%clk 0:02:49]}  Ba6 {[%clk 0:02:06]} 13. Ng3 {[%clk 0:02:27]}  cxd4 {[%clk 0:01:57]} 14. cxd4 {[%clk 0:02:24]}  Nxd4 {[%clk 0:01:54]} 15. Bb2 {[%clk 0:02:24]}  Nc5 {[%clk 0:01:43]} 16. Bxd4 {[%clk 0:02:21]}  exd4 {[%clk 0:01:42]} 17. Nf5 {[%clk 0:02:21]}  Qf6 {[%clk 0:01:38]} 18. g4 {[%clk 0:02:17]}  Rfe8 {[%clk 0:01:07]} 19. Re1 {[%clk 0:01:54]}  h6 {[%clk 0:00:53]} 20. h4 {[%clk 0:01:52]}  Ne6 {[%clk 0:00:45]} 21. g5 {[%clk 0:01:48]}  Qd8 {[%clk 0:00:33]} 22. Qg4 {[%clk 0:01:40]}  h5 {[%clk 0:00:30]} 23. Qg3 {[%clk 0:01:37]}  Nc5 {[%clk 0:00:16]} 24. Rad1 {[%clk 0:01:23]}  Rc8 {[%clk 0:00:13]} 25. Bb1 {[%clk 0:01:22]}  d3 {[%clk 0:00:13]} 26. Bxd3 {[%clk 0:01:21]}  g6 {[%clk 0:00:13]} 27. Nh6+ {[%clk 0:01:20]}  Kg7 {[%clk 0:00:13]} 28. Bb1 {[%clk 0:01:17]}  Na4 {[%clk 0:00:10]} 29. e5 {[%clk 0:01:12]}  Qc7 {[%clk 0:00:05]} 30. exd6 {[%clk 0:00:50]}  Qc5+ {[%clk 0:00:05]} 31. Kh2 {[%clk 0:00:49]}  Rcd8 {[%clk 0:00:05]} 32. f5 {[%clk 0:00:46]}  Qxc4 {[%clk 0:00:04]} 33. d7 {[%clk 0:00:35]}  Rxe1 {[%clk 0:00:03]} 34. Rxe1 {[%clk 0:00:35]}  Nc5 {[%clk 0:00:03]} 35. Qe5+ {[%clk 0:00:35]}  Kh7 {[%clk 0:00:04]} 36. fxg6+ {[%clk 0:00:33]}  fxg6 {[%clk 0:00:02]} 37. Qe7+ {[%clk 0:00:29]} 1-0


[Site "https://www.chess.com"]

[Event "Titled Tuesday Blitz November 29 Late 2022"]
[White "Fedoseev, Vladimir"]
[Black "Hambleton, Aman"]
[WhiteFideId "24130737"]
[BlackFideId "2606577"]
[WhiteElo "2726"]
[BlackElo "2538"]
[Result "1/2-1/2"]
[Round "05"]
[TimeControl "180+1"]
[Date "2022.11.30"]
[WhiteClock "0:00:12"]
[BlackClock "0:00:17"]

1. e4 {[%clk 0:03:00]}  c5 {[%clk 0:02:59]} 2. Nf3 {[%clk 0:03:01]}  e6 {[%clk 0:02:56]} 3. d4 {[%clk 0:03:01]}  cxd4 {[%clk 0:02:57]} 4. Nxd4 {[%clk 0:03:01]}  Nc6 {[%clk 0:02:57]} 5. Nc3 {[%clk 0:03:01]}  Qc7 {[%clk 0:02:55]} 6. a3 {[%clk 0:03:01]}  a6 {[%clk 0:02:55]} 7. Be3 {[%clk 0:03:01]}  b5 {[%clk 0:02:55]} 8. Nxc6 {[%clk 0:02:59]}  Qxc6 {[%clk 0:02:56]} 9. g4 {[%clk 0:02:57]}  Bb7 {[%clk 0:02:52]} 10. Bg2 {[%clk 0:02:57]}  Ne7 {[%clk 0:02:34]} 11. h4 {[%clk 0:02:56]}  Ng6 {[%clk 0:02:13]} 12. h5 {[%clk 0:02:55]}  Ne5 {[%clk 0:02:12]} 13. Bd4 {[%clk 0:02:56]}  f6 {[%clk 0:01:34]} 14. g5 {[%clk 0:02:55]}  Bc5 {[%clk 0:01:28]} 15. h6 {[%clk 0:02:51]}  gxh6 {[%clk 0:01:10]} 16. gxf6 {[%clk 0:02:48]}  Rg8 {[%clk 0:01:06]} 17. Qh5+ {[%clk 0:02:43]}  Nf7 {[%clk 0:01:02]} 18. Qxc5 {[%clk 0:02:23]}  Qxc5 {[%clk 0:01:01]} 19. Bxc5 {[%clk 0:02:24]}  Rxg2 {[%clk 0:01:02]} 20. Ke2 {[%clk 0:02:24]}  d6 {[%clk 0:00:55]} 21. Be3 {[%clk 0:02:13]}  Rg6 {[%clk 0:00:52]} 22. Rag1 {[%clk 0:02:12]}  Rxf6 {[%clk 0:00:34]} 23. Rg7 {[%clk 0:02:09]}  Kf8 {[%clk 0:00:31]} 24. Rhg1 {[%clk 0:02:01]}  Ke7 {[%clk 0:00:16]} 25. Rxh7 {[%clk 0:02:01]}  Rh8 {[%clk 0:00:16]} 26. Rxh8 {[%clk 0:01:56]}  Nxh8 {[%clk 0:00:17]} 27. Rg8 {[%clk 0:01:54]}  Rf8 {[%clk 0:00:10]} 28. Rxf8 {[%clk 0:01:52]}  Kxf8 {[%clk 0:00:11]} 29. Bxh6+ {[%clk 0:01:52]}  Ke8 {[%clk 0:00:10]} 30. f4 {[%clk 0:01:51]}  Nf7 {[%clk 0:00:08]} 31. Bg7 {[%clk 0:01:51]}  e5 {[%clk 0:00:04]} 32. Ke3 {[%clk 0:01:46]}  exf4+ {[%clk 0:00:04]} 33. Kxf4 {[%clk 0:01:46]}  Kd7 {[%clk 0:00:03]} 34. Kf5 {[%clk 0:01:42]}  Nd8 {[%clk 0:00:03]} 35. Nd5 {[%clk 0:01:40]}  Nc6 {[%clk 0:00:01]} 36. Bf6 {[%clk 0:01:37]}  Na5 {[%clk 0:00:01]} 37. b3 {[%clk 0:01:35]}  Bc6 {[%clk 0:00:01]} 38. Bd4 {[%clk 0:01:30]}  Bb7 {[%clk 0:00:01]} 39. Bc3 {[%clk 0:01:24]}  Nc6 {[%clk 0:00:02]} 40. Kf6 {[%clk 0:01:24]}  Nd8 {[%clk 0:00:01]} 41. Ba5 {[%clk 0:01:24]}  Nc6 {[%clk 0:00:02]} 42. Bc3 {[%clk 0:01:24]}  Nb8 {[%clk 0:00:02]} 43. Bd4 {[%clk 0:01:22]}  Nc6 {[%clk 0:00:02]} 44. Bb2 {[%clk 0:01:19]}  Nb8 {[%clk 0:00:02]} 45. Kf7 {[%clk 0:01:17]}  Nc6 {[%clk 0:00:02]} 46. Nf6+ {[%clk 0:01:16]}  Kc7 {[%clk 0:00:03]} 47. Bc3 {[%clk 0:01:15]}  Bc8 {[%clk 0:00:02]} 48. Nd5+ {[%clk 0:01:10]}  Kd8 {[%clk 0:00:02]} 49. Bf6+ {[%clk 0:01:09]}  Kd7 {[%clk 0:00:02]} 50. Nb6+ {[%clk 0:01:07]}  Kc7 {[%clk 0:00:02]} 51. Nxc8 {[%clk 0:01:06]}  Kxc8 {[%clk 0:00:03]} 52. Ke6 {[%clk 0:01:04]}  Kc7 {[%clk 0:00:04]} 53. b4 {[%clk 0:01:02]}  a5 {[%clk 0:00:04]} 54. c3 {[%clk 0:01:01]}  a4 {[%clk 0:00:03]} 55. Bg7 {[%clk 0:00:56]}  Nd8+ {[%clk 0:00:03]} 56. Kd5 {[%clk 0:00:56]}  Kd7 {[%clk 0:00:01]} 57. c4 {[%clk 0:00:55]}  bxc4 {[%clk 0:00:02]} 58. Kxc4 {[%clk 0:00:55]}  Ne6 {[%clk 0:00:03]} 59. Bh6 {[%clk 0:00:54]}  Kc6 {[%clk 0:00:03]} 60. Be3 {[%clk 0:00:53]}  Nc7 {[%clk 0:00:03]} 61. Bc1 {[%clk 0:00:46]}  Nb5 {[%clk 0:00:03]} 62. Bb2 {[%clk 0:00:46]}  Nc7 {[%clk 0:00:03]} 63. b5+ {[%clk 0:00:42]}  Nxb5 {[%clk 0:00:04]} 64. Kb4 {[%clk 0:00:42]}  Nc7 {[%clk 0:00:02]} 65. Bd4 {[%clk 0:00:37]}  Ne6 {[%clk 0:00:02]} 66. Be3 {[%clk 0:00:37]}  d5 {[%clk 0:00:03]} 67. exd5+ {[%clk 0:00:20]}  Kxd5 {[%clk 0:00:03]} 68. Kxa4 {[%clk 0:00:20]}  Kc6 {[%clk 0:00:03]} 69. Ka5 {[%clk 0:00:21]}  Kb7 {[%clk 0:00:04]} 70. Kb5 {[%clk 0:00:21]}  Nc7+ {[%clk 0:00:04]} 71. Kc5 {[%clk 0:00:20]}  Ne6+ {[%clk 0:00:03]} 72. Kd6 {[%clk 0:00:20]}  Nd4 {[%clk 0:00:03]} 73. Bxd4 {[%clk 0:00:17]}  Ka8 {[%clk 0:00:03]} 74. Kc6 {[%clk 0:00:17]}  Kb8 {[%clk 0:00:04]} 75. Kb6 {[%clk 0:00:17]}  Ka8 {[%clk 0:00:05]} 76. Ka6 {[%clk 0:00:16]}  Kb8 {[%clk 0:00:06]} 77. Bb6 {[%clk 0:00:16]}  Ka8 {[%clk 0:00:07]} 78. Kb5 {[%clk 0:00:16]}  Kb8 {[%clk 0:00:08]} 79. Kc6 {[%clk 0:00:17]}  Ka8 {[%clk 0:00:08]} 80. Bc5 {[%clk 0:00:17]}  Kb8 {[%clk 0:00:09]} 81. Be3 {[%clk 0:00:17]}  Ka8 {[%clk 0:00:10]} 82. Kb5 {[%clk 0:00:15]}  Kb8 {[%clk 0:00:11]} 83. Ka6 {[%clk 0:00:14]}  Ka8 {[%clk 0:00:12]} 84. a4 {[%clk 0:00:09]}  Kb8 {[%clk 0:00:13]} 85. a5 {[%clk 0:00:10]}  Ka8 {[%clk 0:00:14]} 86. Kb6 {[%clk 0:00:10]}  Kb8 {[%clk 0:00:15]} 87. Bd4 {[%clk 0:00:10]}  Ka8 {[%clk 0:00:16]} 88. Bc3 {[%clk 0:00:11]}  Kb8 {[%clk 0:00:17]} 89. Bb4 {[%clk 0:00:11]}  Ka8 {[%clk 0:00:17]} 90. Bd6 {[%clk 0:00:12]} 1/2-1/2


[Site "https://www.chess.com"]

[Event "Titled Tuesday Blitz November 29 Late 2022"]
[White "Firouzja, Alireza"]
[Black "Papasimakopoulos, Alexandros"]
[WhiteFideId "12573981"]
[BlackFideId "4244125"]
[WhiteElo "2903"]
[BlackElo "2365"]
[Result "1-0"]
[Round "05"]
[TimeControl "180+1"]
[Date "2022.11.30"]
[WhiteClock "0:01:09"]
[BlackClock "0:00:02"]

1. d4 {[%clk 0:02:57]}  e6 {[%clk 0:02:58]} 2. Nf3 {[%clk 0:02:55]}  Nf6 {[%clk 0:02:57]} 3. Bg5 {[%clk 0:02:55]}  c5 {[%clk 0:02:56]} 4. e3 {[%clk 0:02:45]}  Qb6 {[%clk 0:02:56]} 5. Bxf6 {[%clk 0:02:37]}  gxf6 {[%clk 0:02:57]} 6. Qc1 {[%clk 0:02:35]}  d5 {[%clk 0:02:55]} 7. c3 {[%clk 0:02:34]}  Bd7 {[%clk 0:02:56]} 8. Nbd2 {[%clk 0:02:33]}  cxd4 {[%clk 0:02:54]} 9. exd4 {[%clk 0:02:31]}  Bb5 {[%clk 0:02:55]} 10. a4 {[%clk 0:02:27]}  Bxf1 {[%clk 0:02:52]} 11. Nxf1 {[%clk 0:02:27]}  Nc6 {[%clk 0:02:48]} 12. Ng3 {[%clk 0:02:26]}  Qa6 {[%clk 0:02:46]} 13. Qc2 {[%clk 0:02:14]}  h5 {[%clk 0:02:40]} 14. Ne2 {[%clk 0:02:12]}  Rc8 {[%clk 0:02:35]} 15. O-O {[%clk 0:02:10]}  h4 {[%clk 0:02:27]} 16. h3 {[%clk 0:02:09]}  Bd6 {[%clk 0:02:15]} 17. Rfe1 {[%clk 0:02:06]}  f5 {[%clk 0:02:04]} 18. Nc1 {[%clk 0:01:56]}  Kd7 {[%clk 0:01:44]} 19. Nd3 {[%clk 0:01:55]}  Qb6 {[%clk 0:01:16]} 20. Qe2 {[%clk 0:01:41]}  Rcg8 {[%clk 0:01:08]} 21. b4 {[%clk 0:01:39]}  a6 {[%clk 0:01:01]} 22. b5 {[%clk 0:01:34]}  Na5 {[%clk 0:00:52]} 23. Nde5+ {[%clk 0:01:32]}  Bxe5 {[%clk 0:00:52]} 24. Nxe5+ {[%clk 0:01:32]}  Ke7 {[%clk 0:00:46]} 25. Rab1 {[%clk 0:01:29]}  Rh6 {[%clk 0:00:34]} 26. bxa6 {[%clk 0:01:24]}  Qxa6 {[%clk 0:00:35]} 27. Rb5 {[%clk 0:01:24]}  Nc6 {[%clk 0:00:35]} 28. Nd3 {[%clk 0:01:20]}  Nd8 {[%clk 0:00:14]} 29. Rxd5 {[%clk 0:01:15]}  Rhg6 {[%clk 0:00:09]} 30. Nf4 {[%clk 0:01:15]}  Qxe2 {[%clk 0:00:08]} 31. Nxg6+ {[%clk 0:01:14]}  Kf6 {[%clk 0:00:06]} 32. Rxe2 {[%clk 0:01:14]}  exd5 {[%clk 0:00:07]} 33. Ne7 {[%clk 0:01:14]}  Rh8 {[%clk 0:00:04]} 34. Nxd5+ {[%clk 0:01:15]}  Kg7 {[%clk 0:00:04]} 35. Re7 {[%clk 0:01:14]}  Rh6 {[%clk 0:00:03]} 36. Ne3 {[%clk 0:01:14]}  Ra6 {[%clk 0:00:02]} 37. Rd7 {[%clk 0:01:13]}  Ne6 {[%clk 0:00:01]} 38. Nxf5+ {[%clk 0:01:12]}  Kf6 {[%clk 0:00:02]} 39. Nxh4 {[%clk 0:01:11]}  Rxa4 {[%clk 0:00:02]} 40. Rxb7 {[%clk 0:01:11]}  Ra1+ {[%clk 0:00:01]} 41. Kh2 {[%clk 0:01:11]}  Rc1 {[%clk 0:00:02]} 42. Rb6 {[%clk 0:01:09]} 1-0


[Site "https://www.chess.com"]

[Event "Titled Tuesday Blitz November 29 Late 2022"]
[White "Girel, Joseph"]
[Black "Dzierzak, Radoslaw"]
[WhiteFideId "36033561"]
[BlackFideId "1161407"]
[WhiteElo "2281"]
[BlackElo "2111"]
[Result "1-0"]
[Round "05"]
[TimeControl "180+1"]
[Date "2022.11.30"]
[WhiteClock "0:00:11"]
[BlackClock "0:00:01"]

1. d4 {[%clk 0:01:10]}  Nf6 {[%clk 0:02:59]} 2. Nf3 {[%clk 0:01:11]}  e6 {[%clk 0:02:59]} 3. c4 {[%clk 0:01:11]}  Bb4+ {[%clk 0:02:58]} 4. Nbd2 {[%clk 0:01:11]}  b6 {[%clk 0:02:56]} 5. a3 {[%clk 0:01:11]}  Bxd2+ {[%clk 0:02:55]} 6. Qxd2 {[%clk 0:01:12]}  Bb7 {[%clk 0:02:51]} 7. e3 {[%clk 0:01:12]}  Ne4 {[%clk 0:02:50]} 8. Qc2 {[%clk 0:01:12]}  a5 {[%clk 0:02:49]} 9. Be2 {[%clk 0:01:12]}  d6 {[%clk 0:02:49]} 10. O-O {[%clk 0:01:12]}  Nd7 {[%clk 0:02:49]} 11. b3 {[%clk 0:01:13]}  f5 {[%clk 0:02:48]} 12. Bb2 {[%clk 0:01:13]}  O-O {[%clk 0:02:48]} 13. Ne1 {[%clk 0:01:14]}  Qg5 {[%clk 0:02:30]} 14. Bf3 {[%clk 0:01:13]}  Qh6 {[%clk 0:02:28]} 15. Nd3 {[%clk 0:01:12]}  g5 {[%clk 0:02:22]} 16. b4 {[%clk 0:01:08]}  g4 {[%clk 0:02:22]} 17. Be2 {[%clk 0:01:08]}  Qh4 {[%clk 0:02:04]} 18. d5 {[%clk 0:01:06]}  e5 {[%clk 0:02:02]} 19. Rad1 {[%clk 0:01:04]}  Rf6 {[%clk 0:02:00]} 20. f3 {[%clk 0:00:34]}  Rh6 {[%clk 0:01:39]} 21. fxe4 {[%clk 0:00:33]}  fxe4 {[%clk 0:01:18]} 22. h3 {[%clk 0:00:19]}  gxh3 {[%clk 0:01:07]} 23. Rf2 {[%clk 0:00:19]}  exd3 {[%clk 0:01:02]} 24. Bxd3 {[%clk 0:00:20]}  hxg2 {[%clk 0:01:02]} 25. Rxg2+ {[%clk 0:00:20]}  Kh8 {[%clk 0:01:02]} 26. Bf5 {[%clk 0:00:17]}  Rf8 {[%clk 0:00:39]} 27. Rf1 {[%clk 0:00:17]}  Nf6 {[%clk 0:00:27]} 28. Rf3 {[%clk 0:00:12]}  Qe1+ {[%clk 0:00:16]} 29. Rf1 {[%clk 0:00:11]}  Qxe3+ {[%clk 0:00:16]} 30. Qf2 {[%clk 0:00:12]}  Qxf2+ {[%clk 0:00:09]} 31. Rfxf2 {[%clk 0:00:13]}  axb4 {[%clk 0:00:09]} 32. axb4 {[%clk 0:00:12]}  Nh5 {[%clk 0:00:06]} 33. Be6 {[%clk 0:00:12]}  Nf4 {[%clk 0:00:05]} 34. Rxf4 {[%clk 0:00:12]}  Rxf4 {[%clk 0:00:01]} 35. Rg8# {[%clk 0:00:11]} 1-0


[Site "https://www.chess.com"]

[Event "Titled Tuesday Blitz November 29 Late 2022"]
[White "Goncalves, Davi Sulzbacher"]
[Black "Jimenez, Joaquin"]
[WhiteFideId "2154510"]
[BlackFideId "109860"]
[WhiteElo "2182"]
[BlackElo "2163"]
[Result "1-0"]
[Round "05"]
[TimeControl "180+1"]
[Date "2022.11.30"]
[WhiteClock "0:00:12"]
[BlackClock "0:00:19"]

1. Nf3 {[%clk 0:02:54]}  Nf6 {[%clk 0:02:58]} 2. g3 {[%clk 0:02:55]}  g6 {[%clk 0:02:56]} 3. Bg2 {[%clk 0:02:56]}  Bg7 {[%clk 0:02:57]} 4. O-O {[%clk 0:02:56]}  O-O {[%clk 0:02:58]} 5. c4 {[%clk 0:02:56]}  d6 {[%clk 0:02:57]} 6. Nc3 {[%clk 0:02:56]}  e5 {[%clk 0:02:57]} 7. b3 {[%clk 0:02:55]}  Nc6 {[%clk 0:02:55]} 8. Bb2 {[%clk 0:02:55]}  h6 {[%clk 0:02:54]} 9. d4 {[%clk 0:02:52]}  Bg4 {[%clk 0:02:44]} 10. dxe5 {[%clk 0:02:47]}  dxe5 {[%clk 0:02:44]} 11. Nd5 {[%clk 0:02:39]}  Nxd5 {[%clk 0:02:41]} 12. cxd5 {[%clk 0:02:38]}  Bxf3 {[%clk 0:02:38]} 13. dxc6 {[%clk 0:02:16]}  Bxg2 {[%clk 0:02:27]} 14. Kxg2 {[%clk 0:02:15]}  bxc6 {[%clk 0:02:19]} 15. Rc1 {[%clk 0:02:14]}  Qxd1 {[%clk 0:02:08]} 16. Rfxd1 {[%clk 0:02:13]}  Rad8 {[%clk 0:02:08]} 17. Ba3 {[%clk 0:01:57]}  Rfe8 {[%clk 0:02:00]} 18. Bb4 {[%clk 0:01:39]}  e4 {[%clk 0:01:53]} 19. Rxd8 {[%clk 0:01:37]}  Rxd8 {[%clk 0:01:53]} 20. Rxc6 {[%clk 0:01:37]}  Be5 {[%clk 0:01:50]} 21. Rc4 {[%clk 0:01:18]}  e3 {[%clk 0:01:46]} 22. f4 {[%clk 0:01:15]}  Bd6 {[%clk 0:01:32]} 23. Bxd6 {[%clk 0:01:10]}  Rxd6 {[%clk 0:01:32]} 24. Kf3 {[%clk 0:00:54]}  Ra6 {[%clk 0:01:27]} 25. a4 {[%clk 0:00:52]}  Rb6 {[%clk 0:01:27]} 26. Rxc7 {[%clk 0:00:50]}  Rxb3 {[%clk 0:01:27]} 27. Rxa7 {[%clk 0:00:50]}  Ra3 {[%clk 0:01:27]} 28. a5 {[%clk 0:00:45]}  h5 {[%clk 0:01:27]} 29. a6 {[%clk 0:00:44]}  Kg7 {[%clk 0:01:26]} 30. Ra8 {[%clk 0:00:42]}  Kh7 {[%clk 0:01:25]} 31. h3 {[%clk 0:00:41]}  Kg7 {[%clk 0:01:14]} 32. g4 {[%clk 0:00:34]}  h4 {[%clk 0:01:07]} 33. g5 {[%clk 0:00:31]}  Kh7 {[%clk 0:01:02]} 34. Kg4 {[%clk 0:00:27]}  Ra4 {[%clk 0:01:02]} 35. a7 {[%clk 0:00:20]}  Kg7 {[%clk 0:01:02]} 36. Kf3 {[%clk 0:00:20]}  Ra3 {[%clk 0:01:02]} 37. Ke4 {[%clk 0:00:20]}  Kh7 {[%clk 0:00:59]} 38. Ke5 {[%clk 0:00:20]}  Kg7 {[%clk 0:00:58]} 39. Kd4 {[%clk 0:00:19]}  Kh7 {[%clk 0:00:57]} 40. Kc5 {[%clk 0:00:18]}  Kg7 {[%clk 0:00:54]} 41. Kb6 {[%clk 0:00:17]}  Rb3+ {[%clk 0:00:54]} 42. Kc7 {[%clk 0:00:17]}  Rc3+ {[%clk 0:00:54]} 43. Kd6 {[%clk 0:00:18]}  Ra3 {[%clk 0:00:54]} 44. Ke5 {[%clk 0:00:17]}  Ra2 {[%clk 0:00:49]} 45. Kd4 {[%clk 0:00:17]}  Ra3 {[%clk 0:00:49]} 46. Ke4 {[%clk 0:00:17]}  Kh7 {[%clk 0:00:49]} 47. Kf3 {[%clk 0:00:17]}  Kg7 {[%clk 0:00:47]} 48. Kg4 {[%clk 0:00:17]}  Ra4 {[%clk 0:00:47]} 49. Re8 {[%clk 0:00:16]}  Rxa7 {[%clk 0:00:46]} 50. Kxh4 {[%clk 0:00:17]}  Ra3 {[%clk 0:00:41]} 51. Kg3 {[%clk 0:00:17]}  Rb3 {[%clk 0:00:40]} 52. Kf3 {[%clk 0:00:17]}  Rb1 {[%clk 0:00:39]} 53. Rxe3 {[%clk 0:00:17]}  Rh1 {[%clk 0:00:39]} 54. Kg2 {[%clk 0:00:17]}  Ra1 {[%clk 0:00:38]} 55. Re4 {[%clk 0:00:17]}  Ra2 {[%clk 0:00:37]} 56. Kg3 {[%clk 0:00:17]}  Ra3+ {[%clk 0:00:37]} 57. e3 {[%clk 0:00:17]}  Ra1 {[%clk 0:00:38]} 58. Re8 {[%clk 0:00:16]}  Rg1+ {[%clk 0:00:37]} 59. Kf2 {[%clk 0:00:16]}  Rh1 {[%clk 0:00:37]} 60. Kg2 {[%clk 0:00:16]}  Re1 {[%clk 0:00:37]} 61. e4 {[%clk 0:00:16]}  Re2+ {[%clk 0:00:34]} 62. Kf3 {[%clk 0:00:16]}  Rh2 {[%clk 0:00:34]} 63. Kg3 {[%clk 0:00:16]}  Re2 {[%clk 0:00:35]} 64. h4 {[%clk 0:00:15]}  Re3+ {[%clk 0:00:33]} 65. Kg4 {[%clk 0:00:15]}  f5+ {[%clk 0:00:31]} 66. gxf6+ {[%clk 0:00:15]}  Kxf6 {[%clk 0:00:30]} 67. e5+ {[%clk 0:00:15]}  Kf7 {[%clk 0:00:30]} 68. Ra8 {[%clk 0:00:15]}  Re1 {[%clk 0:00:29]} 69. Ra7+ {[%clk 0:00:15]}  Ke6 {[%clk 0:00:30]} 70. Ra3 {[%clk 0:00:12]}  Rg1+ {[%clk 0:00:27]} 71. Rg3 {[%clk 0:00:13]}  Rh1 {[%clk 0:00:27]} 72. Kg5 {[%clk 0:00:13]}  Kf7 {[%clk 0:00:27]} 73. Rg4 {[%clk 0:00:11]}  Re1 {[%clk 0:00:24]} 74. h5 {[%clk 0:00:10]}  gxh5 {[%clk 0:00:24]} 75. Kxh5 {[%clk 0:00:11]}  Ke6 {[%clk 0:00:24]} 76. Rg6+ {[%clk 0:00:11]}  Kf7 {[%clk 0:00:23]} 77. Rf6+ {[%clk 0:00:11]}  Ke7 {[%clk 0:00:22]} 78. Kg5 {[%clk 0:00:12]}  Rh1 {[%clk 0:00:22]} 79. Rh6 {[%clk 0:00:11]}  Rg1+ {[%clk 0:00:21]} 80. Kf5 {[%clk 0:00:11]}  Rg7 {[%clk 0:00:22]} 81. Ra6 {[%clk 0:00:11]}  Rg1 {[%clk 0:00:20]} 82. Ra7+ {[%clk 0:00:11]}  Kf8 {[%clk 0:00:20]} 83. Kf6 {[%clk 0:00:12]}  Ke8 {[%clk 0:00:19]} 84. e6 {[%clk 0:00:12]} 1-0


[Site "https://www.chess.com"]

[Event "Titled Tuesday Blitz November 29 Late 2022"]
[White "Han, Yichen"]
[Black "Indjic, Aleksandar"]
[WhiteFideId "1054430"]
[BlackFideId "911925"]
[WhiteElo "2323"]
[BlackElo "2592"]
[Result "0-1"]
[Round "05"]
[TimeControl "180+1"]
[Date "2022.11.30"]
[WhiteClock "0:00:08"]
[BlackClock "0:00:11"]

1. e4 {[%clk 0:03:00]}  Nf6 {[%clk 0:03:00]} 2. e5 {[%clk 0:03:00]}  Nd5 {[%clk 0:03:01]} 3. Nc3 {[%clk 0:03:00]}  Nxc3 {[%clk 0:02:56]} 4. dxc3 {[%clk 0:03:01]}  d6 {[%clk 0:02:56]} 5. Bc4 {[%clk 0:03:01]}  e6 {[%clk 0:02:53]} 6. Nf3 {[%clk 0:02:59]}  Nc6 {[%clk 0:02:53]} 7. Bf4 {[%clk 0:02:57]}  h6 {[%clk 0:02:48]} 8. h4 {[%clk 0:02:53]}  a6 {[%clk 0:02:43]} 9. Qe2 {[%clk 0:02:47]}  d5 {[%clk 0:02:42]} 10. Bd3 {[%clk 0:02:46]}  b6 {[%clk 0:02:38]} 11. g4 {[%clk 0:02:45]}  Bb7 {[%clk 0:02:38]} 12. g5 {[%clk 0:02:44]}  hxg5 {[%clk 0:02:32]} 13. Nxg5 {[%clk 0:02:43]}  Qd7 {[%clk 0:02:18]} 14. O-O-O {[%clk 0:02:40]}  Be7 {[%clk 0:02:18]} 15. h5 {[%clk 0:02:36]}  b5 {[%clk 0:02:04]} 16. h6 {[%clk 0:02:23]}  Bxg5 {[%clk 0:01:11]} 17. Bxg5 {[%clk 0:02:23]}  gxh6 {[%clk 0:01:12]} 18. Bf6 {[%clk 0:02:17]}  Rf8 {[%clk 0:01:11]} 19. f4 {[%clk 0:02:03]}  Ne7 {[%clk 0:01:11]} 20. Rdg1 {[%clk 0:01:41]}  O-O-O {[%clk 0:01:11]} 21. Rxh6 {[%clk 0:01:36]}  Ng8 {[%clk 0:01:03]} 22. Bxd8 {[%clk 0:01:32]}  Nxh6 {[%clk 0:01:03]} 23. Bg5 {[%clk 0:01:32]}  Nf5 {[%clk 0:01:03]} 24. a4 {[%clk 0:01:30]}  bxa4 {[%clk 0:00:38]} 25. Bxa6 {[%clk 0:01:25]}  Qc6 {[%clk 0:00:39]} 26. Bb5 {[%clk 0:01:13]}  Qc5 {[%clk 0:00:39]} 27. Rd1 {[%clk 0:01:11]}  a3 {[%clk 0:00:38]} 28. Bd3 {[%clk 0:00:51]}  axb2+ {[%clk 0:00:36]} 29. Kxb2 {[%clk 0:00:51]}  d4 {[%clk 0:00:26]} 30. Qd2 {[%clk 0:00:44]}  Ne3 {[%clk 0:00:20]} 31. Ra1 {[%clk 0:00:34]}  Rh8 {[%clk 0:00:15]} 32. cxd4 {[%clk 0:00:25]}  Qb6+ {[%clk 0:00:15]} 33. Ka3 {[%clk 0:00:17]}  Nd5 {[%clk 0:00:10]} 34. c4 {[%clk 0:00:14]}  Kd7 {[%clk 0:00:10]} 35. Bc2 {[%clk 0:00:10]}  Ra8+ {[%clk 0:00:09]} 36. Ba4+ {[%clk 0:00:11]}  Bc6 {[%clk 0:00:10]} 37. Qc2 {[%clk 0:00:08]}  Qb4+ {[%clk 0:00:10]} 38. Ka2 {[%clk 0:00:08]}  Rxa4+ {[%clk 0:00:10]} 39. Qxa4 {[%clk 0:00:08]}  Nc3# {[%clk 0:00:11]} 0-1


[Site "https://www.chess.com"]

[Event "Titled Tuesday Blitz November 29 Late 2022"]
[White "Hansen, Eric"]
[Black "Di Berardino, Diego Rafael"]
[WhiteFideId "2606771"]
[BlackFideId "2105446"]
[WhiteElo "2568"]
[BlackElo "2442"]
[Result "1-0"]
[Round "05"]
[TimeControl "180+1"]
[Date "2022.11.30"]
[WhiteClock "0:00:43"]
[BlackClock "0:00:05"]

1. e4 {[%clk 0:03:00]}  c5 {[%clk 0:03:00]} 2. Nf3 {[%clk 0:03:00]}  b6 {[%clk 0:03:00]} 3. c4 {[%clk 0:02:56]}  Bb7 {[%clk 0:03:01]} 4. Nc3 {[%clk 0:02:57]}  e6 {[%clk 0:03:01]} 5. d4 {[%clk 0:02:49]}  cxd4 {[%clk 0:03:02]} 6. Nxd4 {[%clk 0:02:49]}  Nf6 {[%clk 0:02:52]} 7. f3 {[%clk 0:02:48]}  Bc5 {[%clk 0:02:52]} 8. Nb3 {[%clk 0:02:25]}  O-O {[%clk 0:02:42]} 9. Nxc5 {[%clk 0:02:23]}  bxc5 {[%clk 0:02:43]} 10. Be3 {[%clk 0:02:20]}  d6 {[%clk 0:02:39]} 11. e5 {[%clk 0:02:04]}  dxe5 {[%clk 0:02:20]} 12. Bxc5 {[%clk 0:02:03]}  Nc6 {[%clk 0:01:50]} 13. Qxd8 {[%clk 0:01:55]}  Rfxd8 {[%clk 0:01:48]} 14. Rd1 {[%clk 0:01:56]}  Nd4 {[%clk 0:01:39]} 15. Be2 {[%clk 0:01:25]}  Nh5 {[%clk 0:00:58]} 16. Kf2 {[%clk 0:01:18]}  Nf4 {[%clk 0:00:55]} 17. Bf1 {[%clk 0:01:17]}  a5 {[%clk 0:00:37]} 18. b3 {[%clk 0:01:16]}  h5 {[%clk 0:00:35]} 19. Bb6 {[%clk 0:01:09]}  Rd7 {[%clk 0:00:28]} 20. Nb5 {[%clk 0:01:08]}  a4 {[%clk 0:00:20]} 21. b4 {[%clk 0:01:05]}  Bc6 {[%clk 0:00:10]} 22. Nxd4 {[%clk 0:01:02]}  exd4 {[%clk 0:00:11]} 23. b5 {[%clk 0:00:59]}  Bb7 {[%clk 0:00:07]} 24. Rxd4 {[%clk 0:00:57]}  Rxd4 {[%clk 0:00:05]} 25. Bxd4 {[%clk 0:00:58]}  Rd8 {[%clk 0:00:05]} 26. Be3 {[%clk 0:00:57]}  e5 {[%clk 0:00:05]} 27. Be2 {[%clk 0:00:53]}  Nd3+ {[%clk 0:00:04]} 28. Bxd3 {[%clk 0:00:52]}  Rxd3 {[%clk 0:00:05]} 29. Rc1 {[%clk 0:00:51]}  Ra3 {[%clk 0:00:05]} 30. Rc2 {[%clk 0:00:51]}  f5 {[%clk 0:00:05]} 31. c5 {[%clk 0:00:45]}  f4 {[%clk 0:00:05]} 32. Bc1 {[%clk 0:00:43]} 1-0


[Site "https://www.chess.com"]